[Event "WSTCC-65 2024"]
[Site "Krakow"]
[Date "2024.07.03"]
[Round "2.3"]
[White "Kane, Robert"]
[Black "Cordes, Steffen"]
[Result "0-1"]
[ECO "A48"]
[WhiteElo "1849"]
[BlackElo "1989"]
[Annotator "NA RC"]
[PlyCount "76"]
[EventDate "2024.07.01"]
[EventType "team-tourn"]
[EventCountry "POL"]
[SourceTitle "playchess.com"]
[Source "ChessBase"]
[SourceQuality "1"]
[TimeControl "40/5400+30:1800+30"]

1. d4 {[%emt 0:00:10]} Nf6 {[%emt 0:00:05]} 2. Nf3 {[%emt 0:00:11]} g6 {[%emt 0:00:06]} 3. Nc3 {[%emt 0:00:20]} d5 {[%emt 0:02:10]} 4. Bf4 {[%emt 0:00:16]} Bg7 {[%emt 0:00:59]} 5. e3 {[%emt 0:00:20]} O-O {[%emt 0:04:04]} 6. Be2 {[%emt 0:00:18]} a6 {[%emt 0:01:21]} 7. Ne5 {[%emt 0:01:14]} e6 {[%emt 0:04:06]} 8. h4 {[%emt 0:01:34]} h6 {[%emt 0:02:42]} 9. h5 {[%emt 0:03:06]} g5 {[%emt 0:00:19]} 10. Bg3 {[%emt 0:23:00]} Nfd7 {[%emt 0:02:39]} 11. f4 {[%emt 0:02:41]} Nxe5 {[%emt 0:00:59]} 12. fxe5 {[%emt 0:08:09]} c5 {[%emt 0:02:28]} 13. Qd2 {[%emt 0:01:40]} b5 {[%emt 0:03:05]} 14. a4 {[%emt 0:07:12]} b4 {[%emt 0:02:54]} 15. Nd1 {[%emt 0:00:08]} Nc6 {[%emt 0:01:35]} 16. Nf2 {[%emt 0:06:42]} cxd4 {[%emt 0:06:10]} 17. exd4 {[%emt 0:00:12]} f5 {[%emt 0:00:19]} 18. c3 {[%emt 0:05:29]} Rb8 {[%emt 0:05:15]} 19. O-O {[%emt 0:03:52]} Na5 {[%emt 0:05:54]} 20. Ra2 {[%emt 0:07:28]} bxc3 {[%emt 0:05:55]} 21. bxc3 {[%emt 0:00:29]} Qb6 {[%emt 0:01:45]} 22. Bd3 {[%emt 0:06:54]} Qc6 {[%emt 0:06:03]} 23. Bc2 {[%emt 0:06:45]} Nc4 {[%emt 0:01:45]} 24. Qc1 {[%emt 0:01:57]} Bd7 {[%emt 0:02:23]} 25. Nd3 {[%emt 0:00:42]} Rfc8 {[%emt 0:06:26]} 26. Be1 {[%emt 0:02:12]} Be8 {[%emt 0:03:12]} 27. g4 {[%emt 0:03:15]} fxg4 {[%emt 0:02:47]} 28. Nb4 {[%emt 0:00:18]} Rxb4 {[%emt 0:06:30]} 29. cxb4 {[%emt 0:00:08]} Bxh5 {[%emt 0:00:29]} 30. Bb1 {[%emt 0:02:48]} Qb6 {[%emt 0:01:10]} 31. Qc2 {[%emt 0:00:49]} Qxd4+ {[%emt 0:00:27]} 32. Bf2 {[%emt 0:01:11]} Qe4 {[%emt 0:02:57]} 33. Qd1 {[%emt 0:01:31]} Qxe5 {[%emt 0:09:58]} 34. Re2 {[%emt 0:00:10]} g3 {[%emt 0:02:50]} 35. Qc2 {[%emt 0:01:29]} Qxe2 {[%emt 0:01:44]} 36. Qh7+ {[%emt 0:00:10]} Kf8 {[%emt 0:00:03]} 37. Bc5+ {[%emt 0:00:47]} Ke8 {[%emt 0:00:12]} 38. Qxg7 {[%emt 0:01:30]} Qh2# {[%emt 0:00:10]} 0-1

[Event "WSTCC-65 2024"]
[Site "Krakow"]
[Date "2024.07.03"]
[Round "2.4"]
[White "Littlewood, Paul E"]
[Black "Staub, Gerhard"]
[Result "1-0"]
[ECO "B30"]
[WhiteElo "2318"]
[BlackElo "2089"]
[Annotator "TA"]
[PlyCount "93"]
[EventDate "2024.07.01"]
[EventType "team-tourn"]
[EventCountry "POL"]
[SourceTitle "playchess.com"]
[Source "ChessBase"]
[SourceQuality "1"]
[TimeControl "40/5400+30:1800+30"]

{[%evp 20,93,37,39,37,41,50,35,42,44,43,35,52,38,27,25,47,31,71,12,19,13,6,11,29,14,14,7,0,15,5,0,0,0,0,0,7,0,5,0,6,0,0,0,0,0,64,0,68,68,175,188,168,168,192,192,194,171,171,171,241,223,214,0,262,259,357,331,722,715,873,928,987,904,1504,1395]} 1. e4 {[%emt 0:00:06]} c5 {[%emt 0:00:12]} 2. Nf3 {[%emt 0:00:08]} Nc6 {[%emt 0:00:08]} 3. Bb5 {[%emt 0:00:26]} d6 {[%emt 0:00:05]} 4. O-O {[%emt 0:00:38]} Bd7 {[%emt 0:00:49]} 5. Re1 {[%emt 0:00:49]} Nf6 {[%emt 0:01:50]} 6. c3 {[%emt 0:00:51]} a6 {[%emt 0:03:19]} 7. Bf1 {[%emt 0:00:58]} Bg4 {[%emt 0:03:00]} 8. h3 {[%emt 0:01:48]} Bxf3 {[%emt 0:00:58]} 9. Qxf3 {[%emt 0:00:08]} g6 {[%emt 0:00:56]} 10. d3 {[%emt 0:01:17]} Bg7 {[%emt 0:04:24]} 11. Be3 {[%emt 0:00:22]} O-O {[%emt 0:01:39]} 12. Nd2 {[%emt 0:02:19]} Qc7 {[%emt 0:05:10]} 13. Qd1 {[%emt 0:11:55]} Nd7 {[%emt 0:07:11] White is slightly better.} 14. f4 {[%emt 0:06:18]} b5 {[%emt 0:02:56]} 15. a3 {[%emt 0:03:00]} a5 {[%emt 0:05:18]} 16. Nf3 {[%emt 0:03:58]} b4 {[%emt 0:03:28]} 17. d4 {[%emt 0:02:23]} bxc3 {[%emt 0:04:57]} 18. bxc3 {[%emt 0:00:08]} Rfb8 {[%emt 0:00:38]} 19. a4 {[%emt 0:08:51]} (19. f5 $16) 19... cxd4 $11 {[%emt 0:05:01]} 20. cxd4 {[%emt 0:00:35]} Nb4 {[%emt 0:11:38]} 21. Rc1 {[%emt 0:01:44]} Qb7 {[%emt 0:00:55]} 22. Bb5 {[%emt 0:08:20]} Rc8 {[%emt 0:04:06]} 23. Qb3 {[%emt 0:04:42]} e6 {[%emt 0:05:43]} 24. Bd2 {[%emt 0:07:52]} Nf6 {[%emt 0:05:35]} 25. e5 {[%emt 0:05:06]} dxe5 {[%emt 0:00:10]} 26. fxe5 {[%emt 0:00:35]} Nfd5 {[%emt 0:00:42]} 27. Kh1 {[%emt 0:01:44]} Rxc1 {[%emt 0:03:47]} 28. Rxc1 {[%emt 0:00:15]} Rc8 {[%emt 0:01:21] Inhibits Bc6.} 29. Rc4 {[%emt 0:01:55]} h6 {[%emt 0:04:18]} 30. Ng1 {[%emt 0:06:03]} Rxc4 {[%emt 0:02:05]} 31. Qxc4 {[%emt 0:00:57]} Bf8 {[%emt 0:00:37]} 32. Ne2 {[%emt 0:01:33]} Qc7 {[%emt 0:02:07]} (32... h5 $11) 33. Nc1 {[%emt 0:01:32]} ({Better is} 33. Qxc7 $14 Nxc7 34. Bd7) 33... Qxc4 {[%emt 0:06:06]} ({Black should try} 33... Qd8 $11) 34. Bxc4 $14 {[%emt 0:00:07]} Nc2 {[%emt 0:00:21]} (34... Be7 $1 $14) 35. Bxd5 $18 {[%emt 0:02:06]} ({And not} 35. Bxa5 Bb4 36. Bxb4 Ndxb4 $11) 35... exd5 {[%emt 0:01:42]} 36. Bxa5 {[%emt 0:03:40]} Nxd4 {[%emt 0:00:14][%mdl 4096] Endgame. KBN-KBN} 37. Bb6 {[%emt 0:00:42]} Nc6 {[%emt 0:00:19] [#]} 38. a5 $1 {[%emt 0:04:10] Black must now prevent a6.} Nb8 {[%emt 0:00:29]} 39. Nd3 {[%emt 0:00:40]} Na6 {[%emt 0:00:45]} (39... g5 {is a better defense.} 40. Kg1 Kg7) 40. Nf4 {[%emt 0:04:16]} Bg7 {[%emt 0:00:37]} 41. Nd3 {[%emt 0:32:15]} ({Resist} 41. Nxd5 $6 Bxe5 42. g4 f6 $16) 41... Bf8 $1 {[%emt 0:30:09]} 42. Kg1 {[%emt 0:00:44]} f5 {[%emt 0:01:53]} 43. Kf2 {[%emt 0:00:00] Ke3 would now be deadly.} ({Weaker is} 43. exf6 Bd6 44. Kf2 Kf7 $18) 43... Kf7 $2 {[%emt 0:00:00]} (43... d4 44. Bxd4 h5) 44. Ke3 {[%emt 0:00:00] White is clearly winning.} g5 {[%emt 0:00:00]} 45. Kd4 {[%emt 0:00:00]} Ke6 {[%emt 0:00:00] [#]} 46. Bc5 $1 {[%emt 0:00:00]} Bg7 {[%emt 0:00:00]} 47. Bd6 {[%emt 0:00:00] Weighted Error Value: White=0.15 (very precise) /Black=0.19 (very precise) .  Mistake:       	White=2     	Black=5      Inaccurate:     	---       	Black=2      OK:         	White=10    	Black=10     Best:        	White=2     	Black=1      Strong:       	---       	Black=1} 1-0

[Event "WSTCC-65 2024"]
[Site "Krakow"]
[Date "2024.07.03"]
[Round "2.4"]
[White "Ceschia, Ivano"]
[Black "Kot, Jerzy"]
[Result "1-0"]
[ECO "A04"]
[WhiteElo "2180"]
[BlackElo "2019"]
[Annotator "RC"]
[PlyCount "97"]
[EventDate "2024.07.01"]
[EventType "team-tourn"]
[EventCountry "POL"]
[SourceTitle "playchess.com"]
[Source "ChessBase"]
[SourceQuality "1"]
[TimeControl "40/5400+30:1800+30"]

1. Nf3 {[%emt 0:00:06]} g6 {[%emt 0:00:07]} 2. e4 {[%emt 0:01:53]} c5 {[%emt 0:00:07]} 3. d4 {[%emt 0:00:47]} cxd4 {[%emt 0:00:08]} 4. Qxd4 {[%emt 0:00:05]} Nf6 {[%emt 0:00:06]} 5. e5 {[%emt 0:00:15]} Nc6 {[%emt 0:00:07]} 6. Qa4 {[%emt 0:00:05]} Nd5 {[%emt 0:00:04]} 7. Qe4 {[%emt 0:00:09]} e6 {[%emt 0:01:08]} 8. c4 {[%emt 0:07:36]} f5 {[%emt 0:00:47]} 9. Qe2 {[%emt 0:06:22]} Nde7 {[%emt 0:00:32]} 10. Nc3 {[%emt 0:01:00]} a6 {[%emt 0:00:14]} 11. g3 {[%emt 0:13:13]} Bg7 {[%emt 0:00:21]} 12. Bg2 {[%emt 0:00:12]} O-O {[%emt 0:01:58]} 13. Bf4 {[%emt 0:02:05]} Rb8 {[%emt 0:01:36]} 14. a4 {[%emt 0:05:48]} Qc7 {[%emt 0:02:17]} 15. O-O {[%emt 0:09:42]} g5 {[%emt 0:02:56]} 16. Nxg5 {[%emt 0:04:33]} Na5 {[%emt 0:07:07]} 17. Qh5 {[%emt 0:04:17]} h6 {[%emt 0:00:08]} 18. Nf3 {[%emt 0:00:07]} Kh7 {[%emt 0:00:07]} 19. Nd5 {[%emt 0:17:45]} exd5 {[%emt 0:01:54]} 20. cxd5 {[%emt 0:00:05]} Qd8 {[%emt 0:10:18]} 21. d6 {[%emt 0:05:58]} Ng8 {[%emt 0:06:14]} 22. Ng5+ {[%emt 0:00:20]} Kh8 {[%emt 0:00:11]} 23. Nf7+ {[%emt 0:00:17]} Rxf7 {[%emt 0:00:26]} 24. Qxf7 {[%emt 0:00:06]} Qf8 {[%emt 0:03:00]} 25. Qxf8 {[%emt 0:01:05]} Bxf8 {[%emt 0:00:12]} 26. e6 {[%emt 0:00:03]} Bg7 27. e7 {[%emt 0:01:18]} Nf6 {[%emt 0:03:51]} 28. b4 {[%emt 0:04:44]} Nb3 {[%emt 0:04:02]} 29. Rab1 {[%emt 0:00:15]} Nd4 {[%emt 0:01:01]} 30. Rfe1 {[%emt 0:00:07]} Ne8 {[%emt 0:00:20]} 31. Rbc1 {[%emt 0:03:47]} Kh7 {[%emt 0:03:49]} 32. Bd5 {[%emt 0:00:44]} Kg6 {[%emt 0:00:41]} 33. h4 {[%emt 0:00:06]} Bf6 {[%emt 0:01:17]} 34. h5+ {[%emt 0:00:48]} Kg7 {[%emt 0:00:10]} 35. Kg2 {[%emt 0:00:08]} b5 {[%emt 0:05:17]} 36. a5 {[%emt 0:01:29]} Nc6 {[%emt 0:02:35]} 37. Bxc6 {[%emt 0:01:31]} dxc6 {[%emt 0:00:48]} 38. d7 {[%emt 0:00:12]} Bxd7 {[%emt 0:00:12]} 39. Bxb8 {[%emt 0:00:05]} Kf7 {[%emt 0:00:25]} 40. Bf4 {[%emt 0:01:20]} Bxe7 {[%emt 0:01:34]} 41. Rxe7+ {[%emt 0:30:06]} Kxe7 42. Bxh6 Be6 {[%emt 0:31:26]} 43. f3 {[%emt 0:01:26]} Bd5 {[%emt 0:00:25]} 44. Be3 {[%emt 0:00:05]} Kf7 {[%emt 0:00:22]} 45. h6 {[%emt 0:00:06]} Kg6 {[%emt 0:00:18]} 46. Rh1 {[%emt 0:00:29]} Nf6 {[%emt 0:00:20]} 47. Bf4 {[%emt 0:00:26]} Bg8 {[%emt 0:00:33]} 48. Kf2 {[%emt 0:00:22]} Bc4 {[%emt 0:00:34]} 49. h7 1-0

[Event "WSTCC-65 2024"]
[Site "Krakow"]
[Date "2024.07.03"]
[Round "2.4"]
[White "Andresen, Hans Jorn"]
[Black "Scowen, Roger S"]
[Result "1/2-1/2"]
[ECO "C01"]
[WhiteElo "1953"]
[BlackElo "1888"]
[Annotator "NA RC"]
[PlyCount "56"]
[EventDate "2024.07.01"]
[EventType "team-tourn"]
[EventCountry "POL"]
[SourceTitle "playchess.com"]
[Source "ChessBase"]
[SourceQuality "1"]
[TimeControl "40/5400+30:1800+30"]

1. e4 {[%emt 0:00:06]} e6 {[%emt 0:00:08]} 2. d4 {[%emt 0:00:58]} d5 {[%emt 0:00:03]} 3. exd5 {[%emt 0:01:00]} exd5 {[%emt 0:00:09]} 4. Nf3 {[%emt 0:00:14]} Nf6 {[%emt 0:00:38]} 5. h3 {[%emt 0:01:25]} c6 {[%emt 0:12:21]} 6. Bd3 {[%emt 0:04:01]} Bd6 {[%emt 0:01:43]} 7. O-O {[%emt 0:01:03]} O-O {[%emt 0:01:14]} 8. b3 {[%emt 0:15:31]} Be6 {[%emt 0:04:37]} 9. Nbd2 {[%emt 0:03:41]} Nbd7 {[%emt 0:02:33]} 10. Re1 {[%emt 0:02:31]} Nh5 {[%emt 0:06:12]} 11. Nf1 {[%emt 0:07:16]} Nf4 {[%emt 0:00:55]} 12. Ne5 {[%emt 0:13:53]} Nxd3 {[%emt 0:00:58]} 13. Qxd3 {[%emt 0:01:03]} Qf6 {[%emt 0:01:10]} 14. f4 {[%emt 0:04:13]} Bb4 {[%emt 0:09:45]} 15. c3 {[%emt 0:00:53]} Ba5 {[%emt 0:00:23]} 16. b4 {[%emt 0:02:08]} Bb6 {[%emt 0:00:35]} 17. Ng3 {[%emt 0:01:28]} Nxe5 {[%emt 0:02:01]} 18. fxe5 {[%emt 0:00:48]} Qg6 {[%emt 0:01:13]} 19. Qxg6 {[%emt 0:04:05]} hxg6 {[%emt 0:00:28]} 20. Bg5 {[%emt 0:02:26]} a5 {[%emt 0:02:09]} 21. a3 {[%emt 0:07:09]} Rae8 {[%emt 0:03:42]} 22. Ne2 {[%emt 0:03:12]} f6 {[%emt 0:01:19]} 23. exf6 {[%emt 0:03:08]} gxf6 {[%emt 0:00:05]} 24. Bh6 {[%emt 0:00:47]} Rf7 {[%emt 0:03:09]} 25. Nf4 {[%emt 0:00:25]} Kh7 {[%emt 0:00:21]} 26. Rxe6 {[%emt 0:00:56]} Rxe6 {[%emt 0:00:15]} 27. Nxe6 {[%emt 0:01:57]} Kxh6 {[%emt 0:00:23]} 28. Nc5 {[%emt 0:02:07]} Re7 {[%emt 0:13:11]} 1/2-1/2

[Event "WSTCC-65 2024"]
[Site "Krakow"]
[Date "2024.07.03"]
[Round "2.5"]
[White "Mikhalevski, Alexander"]
[Black "Kyas, Juergen"]
[Result "1/2-1/2"]
[ECO "D82"]
[WhiteElo "2393"]
[BlackElo "2173"]
[Annotator "TA"]
[PlyCount "44"]
[EventDate "2024.07.01"]
[EventType "team-tourn"]
[EventCountry "POL"]
[SourceTitle "playchess.com"]
[Source "ChessBase"]
[SourceQuality "1"]
[TimeControl "40/5400+30:1800+30"]

{[%evp 17,44,7,0,0,-8,3,0,0,0,0,14,13,0,0,7,10,9,2,9,0,0,0,0,0,14,0,0,-61,-65]} 1. d4 {[%emt 0:00:05]} Nf6 {[%emt 0:00:04]} 2. c4 {[%emt 0:00:04]} g6 {[%emt 0:00:09]} 3. Nc3 {[%emt 0:00:04]} d5 {[%emt 0:00:05]} 4. Bf4 {[%emt 0:00:08]} Bg7 {[%emt 0:00:12]} 5. e3 {[%emt 0:00:05]} c5 {[%emt 0:00:12]} 6. Nf3 {[%emt 0:00:10]} O-O {[%emt 0:00:17]} 7. dxc5 {[%emt 0:00:09]} Qa5 {[%emt 0:00:04]} 8. Rc1 {[%emt 0:00:19]} dxc4 {[%emt 0:00:38]} 9. Bxc4 {[%emt 0:00:13]} Qxc5 {[%emt 0:01:03]} 10. b3 {[%emt 0:00:13]} Nc6 {[%emt 0:00:38]} 11. O-O {[%emt 0:00:32]} Bg4 {[%emt 0:00:46]} 12. h3 {[%emt 0:01:38] The position is equal.} Rad8 {[%emt 0:00:30]} 13. Qe2 {[%emt 0:00:13]} Bxf3 {[%emt 0:00:05]} 14. Qxf3 {[%emt 0:00:19]} Qa5 {[%emt 0:00:27]} 15. Ne4 {[%emt 0:04:52]} Nxe4 {[%emt 0:03:57]} 16. Qxe4 {[%emt 0:00:07]} Qxa2 {[%emt 0:00:18] [#]} 17. b4 $1 {[%emt 0:00:18][%cal Bb3b4,Bb4b5][%mdl 32]} Qa3 {[%emt 0:00:02][%cal Oe7e6]} (17... Qb2 18. b5) 18. b5 {[%emt 0:00:55]} Na5 {[%emt 0:00:13][%cal Bc6a5,Ba5b3,Bb3d4][%mdl 32]} 19. Be2 {[%emt 0:00:11] A strong pair of Bishops.} Nb3 {[%emt 0:20:14]} 20. Rc7 {[%emt 0:00:32]} Qb2 {[%emt 0:31:26]} 21. Rc2 {[%emt 0:06:02][%mdl 1024] White has compensation.} Qf6 {[%emt 0:18:25]} (21... Nd2 22. Qa4 Qb3 23. Qxb3 Nxb3 24. Rc7 $11) 22. Qb4 {[%emt 0:05:40] [#] Prevents Nd2.} (22. Qxb7 $11 Nd4 23. exd4 Qxf4 24. Qxe7 (24. Qxa7 Qe4 $11)) 22... Nd4 $1 {[%emt 0:00:53] Weighted Error Value: White=0.07 (flawless) /Black=0.04 (flawless) .  Mistake:       	White=1     	---        OK:         	White=8     	Black=6      Brilliant:      	---       	Black=1} 1/2-1/2

[Event "WSTCC-65 2024"]
[Site "Krakow"]
[Date "2024.07.03"]
[Round "2.5"]
[White "Maier, Christian"]
[Black "Wallace, John Paul"]
[Result "1/2-1/2"]
[ECO "A25"]
[WhiteElo "2252"]
[BlackElo "2369"]
[Annotator "RC"]
[PlyCount "109"]
[EventDate "2024.07.01"]
[EventType "team-tourn"]
[EventCountry "POL"]
[SourceTitle "playchess.com"]
[Source "ChessBase"]
[SourceQuality "1"]
[TimeControl "40/5400+30:1800+30"]

1. c4 {[%emt 0:02:57]} e5 {[%emt 0:00:06]} 2. Nc3 {[%emt 0:00:52]} Nc6 {[%emt 0:00:13]} 3. g3 {[%emt 0:00:35]} f5 {[%emt 0:01:13]} 4. Bg2 {[%emt 0:00:37]} Nf6 {[%emt 0:00:10]} 5. e3 {[%emt 0:00:39]} d5 {[%emt 0:01:24]} 6. cxd5 {[%emt 0:12:34]} Nb4 {[%emt 0:00:12]} 7. d3 {[%emt 0:00:40]} Nfxd5 {[%emt 0:06:52]} 8. Nxd5 {[%emt 0:00:41]} Nxd5 {[%emt 0:00:06]} 9. a3 {[%emt 0:06:18]} Be6 {[%emt 0:05:26]} 10. Nf3 {[%emt 0:01:16]} Bd6 {[%emt 0:02:29]} 11. O-O {[%emt 0:00:22]} O-O {[%emt 0:01:22]} 12. Qc2 {[%emt 0:01:11]} Qe7 {[%emt 0:14:41]} 13. Bd2 {[%emt 0:03:33]} Kh8 {[%emt 0:01:23]} 14. e4 {[%emt 0:01:52]} fxe4 {[%emt 0:02:47]} 15. dxe4 {[%emt 0:00:05]} Nf6 {[%emt 0:00:14]} 16. Bc3 {[%emt 0:00:19]} Nd7 {[%emt 0:09:57]} 17. Nd2 {[%emt 0:16:44]} Bc5 {[%emt 0:02:08]} 18. b4 {[%emt 0:00:30]} Bb6 {[%emt 0:00:18]} 19. Bb2 {[%emt 0:06:50]} Rf7 {[%emt 0:04:27]} 20. Kh1 {[%emt 0:00:23]} Bxf2 {[%emt 0:11:08]} 21. Qxc7 {[%emt 0:00:07]} Qg5 {[%emt 0:02:51]} 22. Nf3 {[%emt 0:03:25]} Qe3 {[%emt 0:00:22]} 23. Nxe5 {[%emt 0:03:01]} Nxe5 {[%emt 0:00:36]} 24. Qxe5 {[%emt 0:00:04]} Bc4 {[%emt 0:03:39]} 25. Rfc1 {[%emt 0:04:11]} Be2 {[%emt 0:04:00]} 26. Rc7 {[%emt 0:00:24]} Rxc7 {[%emt 0:08:07]} 27. Qxc7 {[%emt 0:00:07]} Qg5 {[%emt 0:01:59]} 28. Qf4 {[%emt 0:05:24]} Qxf4 {[%emt 0:01:01]} 29. gxf4 {[%emt 0:00:05]} Rd8 {[%emt 0:00:13]} 30. f5 {[%emt 0:00:30]} Kg8 {[%emt 0:00:43]} 31. Rc1 {[%emt 0:02:23]} Rd2 {[%emt 0:05:19]} 32. Be5 {[%emt 0:01:37]} h5 {[%emt 0:03:59]} 33. Bc3 {[%emt 0:12:12]} Ra2 {[%emt 0:00:33]} 34. e5 {[%emt 0:00:05]} Rxa3 {[%emt 0:02:16]} 35. Bxb7 {[%emt 0:00:12]} Be3 {[%emt 0:00:56]} 36. Re1 {[%emt 0:00:50]} Rxc3 {[%emt 0:03:01]} 37. Rxe2 {[%emt 0:00:04]} Kf8 {[%emt 0:01:21]} 38. Kg2 {[%emt 0:01:44]} h4 {[%emt 0:00:51]} 39. Kh3 {[%emt 0:06:07]} Bc5+ {[%emt 0:01:00]} 40. Kxh4 {[%emt 0:00:15]} Bxb4 {[%emt 0:00:05]} 41. Kg5 {[%emt 0:31:31]} Rc7 {[%emt 0:05:18]} 42. Bd5 {[%emt 0:00:00]} Rc5 {[%emt 0:00:06]} 43. Ba2 {[%emt 0:00:00]} Bc3 {[%emt 0:01:55]} 44. Kf4 {[%emt 0:00:00]} Ra5 {[%emt 0:01:38]} 45. Bb3 {[%emt 0:00:00]} Rb5 {[%emt 0:01:49]} 46. Ba2 {[%emt 0:00:00]} Ra5 {[%emt 0:00:07]} 47. Be6 {[%emt 0:00:00]} Ke7 {[%emt 0:03:00]} 48. h4 {[%emt 0:00:00]} Ra4+ {[%emt 0:05:56]} 49. Kg5 {[%emt 0:00:00]} Ra5 {[%emt 0:00:11]} 50. Kf4 {[%emt 0:00:00]} Ra4+ {[%emt 0:00:09]} 51. Re4 {[%emt 0:00:00]} Bd2+ {[%emt 0:02:47]} 52. Kf3 {[%emt 0:00:00]} Rxe4 {[%emt 0:00:05]} 53. Kxe4 {[%emt 0:00:00]} Be1 {[%emt 0:00:07]} 54. h5 {[%emt 0:00:00]} Bd2 {[%emt 0:00:07]} 55. Bc4 1/2-1/2

[Event "WSTCC-65 2024"]
[Site "Krakow"]
[Date "2024.07.03"]
[Round "2.5"]
[White "Varley, Peter"]
[Black "Hogan, Pat"]
[Result "1-0"]
[ECO "A52"]
[WhiteElo "2140"]
[BlackElo "1936"]
[Annotator "NA RC"]
[PlyCount "49"]
[EventDate "2024.07.01"]
[EventType "team-tourn"]
[EventCountry "POL"]
[SourceTitle "playchess.com"]
[Source "ChessBase"]
[SourceQuality "1"]
[TimeControl "40/5400+30:1800+30"]

1. d4 {[%emt 0:00:06]} Nf6 {[%emt 0:00:12]} 2. c4 {[%emt 0:00:06]} e5 {[%emt 0:00:09]} 3. dxe5 {[%emt 0:00:41]} Ng4 {[%emt 0:00:13]} 4. e3 {[%emt 0:00:26]} Nxe5 {[%emt 0:00:52]} 5. Nc3 {[%emt 0:00:15]} Bb4 {[%emt 0:02:31]} 6. Bd2 {[%emt 0:04:10]} O-O {[%emt 0:01:13]} 7. a3 {[%emt 0:00:25]} Bxc3 {[%emt 0:00:13]} 8. Bxc3 {[%emt 0:00:06]} d6 {[%emt 0:00:44]} 9. Be2 {[%emt 0:02:58]} a5 {[%emt 0:01:57]} 10. Nf3 {[%emt 0:01:01]} Nbc6 {[%emt 0:01:29]} 11. b4 {[%emt 0:04:08]} Re8 {[%emt 0:04:43]} 12. b5 {[%emt 0:09:27]} Nxf3+ {[%emt 0:01:36]} 13. gxf3 {[%emt 0:00:07]} Ne5 {[%emt 0:06:17]} 14. f4 {[%emt 0:00:15]} Nd7 {[%emt 0:02:43]} 15. Rg1 {[%emt 0:01:27]} f6 {[%emt 0:01:30]} 16. Qd5+ {[%emt 0:09:44]} Kh8 {[%emt 0:02:12]} 17. Bd3 {[%emt 0:03:17]} Nc5 {[%emt 0:02:23]} 18. Bc2 {[%emt 0:11:33]} Be6 {[%emt 0:00:51]} 19. Qh5 {[%emt 0:00:48]} Bg8 {[%emt 0:00:38]} 20. O-O-O {[%emt 0:02:53]} Ne4 {[%emt 0:05:17]} 21. Rxg7 {[%emt 0:06:07]} Kxg7 {[%emt 0:06:50]} 22. Rg1+ {[%emt 0:00:19]} Kf8 {[%emt 0:02:00]} 23. Qh6+ {[%emt 0:00:50]} Kf7 {[%emt 0:00:41]} 24. Rg7+ {[%emt 0:00:44]} Ke6 {[%emt 0:00:29]} 25. f5+ {[%emt 0:00:28]} 1-0